Cogmind - Beta 15 @@@ ROGUE MODE // 2025.10.19 @ 17:37:59 Player: GolbalwarmingLord Result: Self-destructed Performance ------------- Evolutions (3) 1500 Regions Visited (5) 1000 Robots Destroyed (121) 605 Value Destroyed (3559) 3559 Prototype IDs (2) 40 Alien Tech Used (0) 0 Bonus (129) 129 TOTAL SCORE: 6833 Bonus ------- High Alert Combat Kills 287 Friendly Fire -158 Cogmind --------- Core Integrity 557/700 Matter 213/300 Energy 53/100 System Corruption 0% Temperature Cool (9) Movement Rolling (100) Location -7/Factory Parts ------- > --- POWER (2) -------- (None) > --- PROPULSION (4) --- Armored Huge Wheel > --- UTILITY (5) ------ Improved Heat Sink Large Storage Unit Microactuators System Shield > --- WEAPON (2) ------- (None) > --- INVENTORY (15) --- Cesium-ion Thruster Cesium-ion Thruster Improved VTOL Module Structural Scanner Sensor Array Hacking Suite Hacking Suite Peak State ------------ > --- POWER ------------ Nuclear Core Nuclear Core > --- PROPULSION ------- Aluminum Leg Aluminum Leg VSS Leg VSS Leg > --- UTILITY ---------- Large Storage Unit Experimental Sensor Array Microactuators Improved Utility Shielding Hardened Medium Armor Plating > --- WEAPON ----------- Missile Launcher Great Axe > --- INVENTORY -------- Cesium-ion Thruster Cesium-ion Thruster Cesium-ion Thruster Improved VTOL Module Improved Heat Sink Structural Scanner Sensor Array Hacking Suite Hacking Suite System Shield Missile Launcher [Rating: 44] Favorites ----------- Power Light Nuclear Core Engine Ion Engine Power Core Light Nuclear Core Propulsion Armored Wheel Treads Light Treads Leg VSS Leg Wheel Armored Wheel Flight Unit Cesium-ion Thruster Utility Large Storage Unit Device Experimental Sensor Array Storage Large Storage Unit Hackware System Shield Protection Improved Utility Shielding Weapon Katana Energy Gun Medium Laser Ballistic Gun Assault Rifle Ballistic Cannon Light Cannon Launcher Grenade Launcher Impact Weapon Hammer Slashing Weapon Katana Special Melee Weapon Datajack Build | -11 -10 -9 -9 -8 -7 ------- Run | Yrd Mat Mat Min Mat Fac Slots Evolved 6 | . . 2 . 2 2 Power 1 | . . . . . 1 Propulsion 2 | . . . . 2 . Utility 3 | . . 2 . . 1 Weapon . | . . . . . . Parts Attached 61 | 8 9 7 6 19 12 Power 8 | 1 . 1 1 3 2 Engine 4 | 1 . 1 . 2 . Core 4 | . . . 1 1 2 Reactor . | . . . . . . Propulsion 24 | 2 3 2 . 11 6 Treads 3 | 2 . . . 1 . Leg 6 | . . . . 4 2 Wheel 8 | . 2 2 . 3 1 Hover . | . . . . . . Flight 7 | . 1 . . 3 3 Utility 13 | 3 1 2 3 1 3 Device 7 | 2 1 . 3 . 1 Storage 2 | 1 . 1 . . . Processor . | . . . . . . Hackware 1 | . . . . . 1 Protection 3 | . . 1 . 1 1 Artifact . | . . . . . . Weapon 16 | 2 5 2 2 4 1 Energy Gun 1 | . 1 . . . . Energy Cannon . | . . . . . . Ballistic Gun 2 | 2 . . . . . Ballistic Cannon 3 | . 2 1 . . . Launcher 6 | . 1 . . 4 1 Special Weapon . | . . . . . . Impact Weapon 1 | . . 1 . . . Slashing Weapon 2 | . . . 2 . . Piercing Weapon . | . . . . . . Special Melee Weapon 1 | . 1 . . . . Unidentified Prototypes 2 | . . . 1 1 . Corrupted Parts 1 | . . . . 1 . System Corruption 1 | . . . . 1 . Parts Lost 34 | . 4 3 1 12 14 Power 5 | . . . . 2 3 Propulsion 13 | . 2 . . 7 4 Utility 5 | . . 1 1 . 3 Weapon 11 | . 2 2 . 3 4 Highest Loss Streak 7 | . 3 1 1 7 6 To Critical Strikes . | . . . . . . Average Backups 10 | 2 7 11 14 11 8 Power . | . 1 1 1 . . Propulsion 3 | 1 1 4 6 1 2 Utility 4 | . 2 3 5 6 5 Weapon 2 | . 1 2 2 3 . Tool/Special . | . . . . . . Unused Backups 11 | . . . 1 8 2 Power 1 | . . . 1 . . Propulsion 4 | . . . . 4 . Utility 5 | . . . . 3 2 Weapon 1 | . . . . 1 . Tool/Special . | . . . . . . Average Slot Usage (%) 93 | . 94 96 99 90 86 Engine 5 | . 13 11 . 4 . Core 5 | . . . 10 4 12 Treads 6 | . 24 . . . . Leg 4 | . . . . 10 12 Wheel 13 | . 3 22 21 16 . Flight 1 | . . . . . 11 Device 19 | . 14 25 24 18 14 Storage 10 | . 14 11 11 9 7 Protection 6 | . . 4 8 8 10 Energy Gun 1 | . 4 . . . . Ballistic Gun 2 | . 11 . . . . Ballistic Cannon 3 | . 5 16 1 . . Launcher 5 | . . . 9 8 6 Impact Weapon 2 | . . 4 5 . . Slashing Weapon 4 | . . . 5 9 7 Peak Build Rating 44 | 9 9 15 29 42 44 Average Rating 23 | 5 7 12 23 35 38 On Entrance 16 | . 9 7 15 28 37 Naked Turns . | . . . . . . Heaviest Build 57 | 15 17 38 38 43 57 Greatest Support 49 | 40 40 26 24 49 44 Greatest Overweight (x) 13 | . 4 1 3 13 2 Average Overweight (x) . | . . . 1 . 1 Largest Inventory Capacity 15 | 8 8 15 15 15 15 Average Capacity 12 | 7 8 12 15 15 15 Most Carried 15 | 5 8 15 15 15 13 Average Carried 11 | 2 7 11 14 12 8 Final Capacity 15 | 8 8 15 15 15 15 Final Carried 14 | 5 7 14 14 14 7 Class Distribution -------------------- 98% | Mutant Dominant Class ---------------- Mutant | -10/Materials Mutant | -9/Materials Mutant | -9/Mines Mutant | -8/Materials Mutant | -7/Factory Resources | -11 -10 -9 -9 -8 -7 ----------- Run | Yrd Mat Mat Min Mat Fac Matter Collected 2125 | 233 322 432 155 582 401 Remotely . | . . . . . . Salvage Created 3448 | 107 426 575 607 1273 460 Parts 190 | 12 40 27 21 66 24 Haulers Intercepted 2 | . . . . 2 . Recyclers Shooed 7 | 1 2 2 1 1 . Parts Field Recycled . | . . . . . . Retrieved Matter . | . . . . . . Parts Self-Destructed . | . . . . . . Prevented . | . . . . . . Kills | -11 -10 -9 -9 -8 -7 ------- Run | Yrd Mat Mat Min Mat Fac Combat Hostiles Destroyed 78 | . 16 11 4 36 11 Melee 12 | . . 1 2 3 6 Guns 13 | . 13 . . . . Cannons 15 | . 3 10 2 . . AOE 38 | . . . . 33 5 Classes Destroyed 14 | 2 5 3 1 3 . Worker 4 | . 1 . 2 . 1 Builder 7 | . 4 . . 3 . Tunneler 9 | 2 2 . 3 1 1 Hauler 2 | . . . . 2 . Recycler 11 | 1 . 3 5 2 . Mechanic 1 | . . 1 . . . Operator 3 | . 1 1 . 1 . Watcher 5 | . . . . 4 1 Swarmer 15 | . 8 . . 3 4 Grunt 49 | . 8 7 3 26 5 Brawler 1 | . . 1 . . . Duelist 2 | . . . 1 1 . Protector 1 | . . . . 1 . Sentry 10 | . . 3 . 5 2 Thug 1 | . . . . 1 . Best Kill Streak 12 | 3 8 4 3 12 4 Combat Bots Only 12 | . 3 3 2 12 4 Max Kills in Single Turn 5 | 1 5 1 1 5 2 Gunslinging . | . . . . . . Exploded 4 | . . . . 4 2 Melee 1 | . . 1 1 1 1 Uniques/NPCs Destroyed . | . . . . . . Combat | -11 -10 -9 -9 -8 -7 -------- Run | Yrd Mat Mat Min Mat Fac Hostile Shots Fired 415 | . 98 62 13 116 126 Missed 120 | . 24 19 2 40 35 Hits 295 | . 74 43 11 76 91 Melee 4 | . . . 4 . . Projectile 291 | . 74 43 7 76 91 Critical Strikes 7 | . . . 3 4 . Actively Blocked 1 | . . . . 1 . Part Disruptions 1 | . . . . 1 . Damage Taken 4468 | . 900 525 266 1510 1267 Core 946 | . 225 71 61 446 143 Absorbed by Shields . | . . . . . . Redirected to Shielding 102 | . . . . 53 49 Regen/Repaired (Parts) 40 | . 40 . . . . Core Remaining (%) 48 | 100 10 . 67 18 . Volleys Fired 173 | 3 58 45 9 46 12 Largest 2 | 2 2 2 1 1 1 Hottest 80 | 40 80 60 33 39 36 Shots Fired 235 | 6 95 66 9 47 12 Gun 83 | 6 77 . . . . Cannon 88 | . 17 66 5 . . Launcher 64 | . 1 . 4 47 12 Special . | . . . . . . Kinetic 147 | 6 70 66 5 . . Thermal 24 | . 24 . . . . Explosive 64 | . 1 . 4 47 12 Electromagnetic . | . . . . . . Robot Hit Streak 11 | 3 9 11 7 6 7 Robot Miss Streak 3 | 1 2 3 1 3 1 Penetration Max . | . . . . . . Secondary Targets 3 | . 3 . . . . Max Gunslinging Chain 1 | . 1 . . . . Shots Hit Robots 220 | 5 66 49 27 46 27 Core Hits 178 | 4 31 17 12 93 21 Critical Kills 1 | . . . 1 . . Critical Parts Destroyed 3 | . . 2 1 . . Critical Strikes 11 | . . 3 3 3 2 Blast 1 | . . 1 . . . Smash 4 | . . 2 2 . . Sever 6 | . . . 1 3 2 Melee Attacks 98 | . 11 7 25 26 29 Impact 17 | . . 7 10 . . Slashing 70 | . . . 15 26 29 Piercing . | . . . . . . Sneak Attacks 26 | . 3 3 13 5 2 Combat Hostiles . | . . . . . . Follow-up Attacks . | . . . . . . Damage Inflicted 10520 | 68 1496 1003 1210 5397 1346 Guns 705 | 68 637 . . . . Cannons 1082 | . 225 755 102 . . Explosions 5892 | . 628 . 67 4555 642 Melee 2835 | . . 248 1041 842 704 Ramming 6 | . 6 . . . . Kinetic 1562 | 68 637 755 102 . . Thermal 737 | . 649 . . . 88 Explosive 5290 | . 204 . 67 4465 554 Electromagnetic 90 | . . . . 90 . Impact 647 | . . 248 399 . . Slashing 2188 | . . . 642 842 704 Piercing . | . . . . . . Highest Corruption 4 | . . . . 4 . Average Corruption 2 | . . . . 2 . Corruption Purged . | . . . . . . Corruption Blocked . | . . . . . . Effects 13 | . . . . 13 . Message Errors 2 | . . . . 2 . Matter Fused 3 | . . . . 3 . Energy Discharges 1 | . . . . 1 . Parts Fused 1 | . . . . 1 . Data Loss (minor) 1 | . . . . 1 . Data Loss (major) 1 | . . . . 1 . Misfires 1 | . . . . 1 . Alerts 3 | . . . . 3 . Overload Shots . | . . . . . . Overflow Damage 736 | . 98 121 243 217 57 Projectiles . | . . . . . . Explosions 218 | . 98 . . 93 27 Melee 518 | . . 121 243 124 30 Knockbacks 14 | . 5 5 4 . . Impact 5 | . . 1 4 . . Kinetic 8 | . 4 4 . . . Secondary 1 | . 1 . . . . Self-Inflicted Damage 664 | . 200 . 46 257 161 Shots 14 | . 3 . 1 6 4 Rammed 2 | . 2 . . . . Targets Rammed 2 | . 2 . . . . Kicked . | . . . . . . Crushed . | . . . . . . Highest Temperature 72 | . 72 15 30 41 8 Average Temperature 19 | . 28 4 16 14 6 Received Heat Transfer 1293 | . 183 261 69 531 249 Siege Activations . | . . . . . . Martial Activations . | . . . . . . Shielding Activations . | . . . . . . Robots Disrupted . | . . . . . . Combat Hostiles . | . . . . . . Robots Corrupted 5 | . . 3 2 . . Combat Hostiles . | . . . . . . Parts Fried 10 | . . 5 5 . . Impact Corruptions 12 | . . 5 7 . . Robots Melted . | . . . . . . Combat Hostiles . | . . . . . . Parts Melted 2 | . 2 . . . . Heat Transferred 966 | . 916 . . . 50 Parts Sabotaged . | . . . . . . Parts Stolen . | . . . . . . Parts Stripped . | . . . . . . Power Chain Reactions . | . . . . . . Alert | -11 -10 -9 -9 -8 -7 ------- Run | Yrd Mat Mat Min Mat Fac Maximum Alert Level 3 | . . 1 . 3 2 Low Security (%) 67 | 100 100 57 100 35 . Level 1 10 | . . 42 . 15 24 Level 2 17 | . . . . 30 75 Level 3 4 | . . . . 17 . Level 4 . | . . . . . . Level 5 . | . . . . . . High Security . | . . . . . . Max Security . | . . . . . . Peak Influence 850 | 10 182 259 93 850 502 Initial 383 | . . 29 83 . 383 Average 196 | . 85 173 18 389 439 Influence Increases 3176 | 15 520 430 181 1539 491 Destroy 0b10 Robot/C 1540 | . 320 220 80 700 220 Destroy 0b10 Robot/NC 215 | 15 40 25 50 70 15 Destroy Leader 344 | . 60 70 20 152 42 Successful Hack 24 | . 8 9 . 7 . Disable Machine 345 | . 75 . . 180 90 Destroy Structure 453 | . 17 1 31 325 79 Partial Spotted 15 | . . . . 15 . Lose Combat Pursuer 240 | . . 105 . 90 45 Influence Decreases 2720 | 15 448 287 396 695 879 Entered New Map 636 | . . 43 132 . 461 Time Decay 1594 | 15 408 214 254 425 278 Lost Part 340 | . 40 30 10 120 140 Purge Threat 150 | . . . . 150 . Squads Dispatched 20 | . 2 2 1 11 4 Investigation 5 | . 1 . 1 3 . Extermination 1 | . . . . . 1 Reinforcement 9 | . 1 2 . 4 2 Assault 1 | . . . . 1 . Garrison 4 | . . . . 3 1 Intercept . | . . . . . . Searches Triggered . | . . . . . . Construction Impeded 1 | . . . . 1 . Haulers Reinforced . | . . . . . . Active Scanning Responses . | . . . . . . Cargo Convoy Interrupts . | . . . . . . Stealth | -11 -10 -9 -9 -8 -7 --------- Run | Yrd Mat Mat Min Mat Fac Distress Signals 4 | . 2 1 . 1 . Communications Jammed . | . . . . . . Distress Signals . | . . . . . . Times Spotted 123 | . 30 16 4 52 21 Peak Tracking Total 12 | . 4 5 2 12 4 Tactical Retreats 8 | . . 3 . 2 3 Traps | -11 -10 -9 -9 -8 -7 ------- Run | Yrd Mat Mat Min Mat Fac Traps Triggered 2 | . . . . 2 . Indirectly . | . . . . . . Trap Hack Attempts . | . . . . . . Triggered . | . . . . . . Disarmed . | . . . . . . Reprogrammed . | . . . . . . Reused . | . . . . . . Traps Extracted . | . . . . . . Installed . | . . . . . . Triggered . | . . . . . . Machines | -11 -10 -9 -9 -8 -7 ---------- Run | Yrd Mat Mat Min Mat Fac Machines Disabled 23 | . 5 . . 12 6 Max in Single Turn 5 | . 5 . . 1 4 Machines Repaired . | . . . . . . Machines Dismantled . | . . . . . . Machines Sabotaged . | . . . . . . Overloaded Fab Kills . | . . . . . . Hacking | -11 -10 -9 -9 -8 -7 --------- Run | Yrd Mat Mat Min Mat Fac Machines Accessed 13 | . 4 2 1 6 . Terminals 10 | . 2 2 . 6 . Fabricators . | . . . . . . Repair Stations 1 | . 1 . . . . Recycling Units 1 | . 1 . . . . Scanalyzers . | . . . . . . Garrison Access . | . . . . . . Total Hacks 36 | . 10 8 1 17 . Successful 20 | . 4 3 1 12 . Failed 15 | . 6 5 . 4 . Catastrophic 2 | . 2 . . . . Database Lockouts 1 | . . . . 1 . Manual 3 | . . 2 . 1 . Terminals 30 | . 5 8 . 17 . Fabricators . | . . . . . . Repair Stations 3 | . 3 . . . . Recycling Units 2 | . 2 . . . . Scanalyzers . | . . . . . . Garrison Access . | . . . . . . Terminal Hacks 17 | . 1 3 1 12 . Record 4 | . . . . 4 . Open Door 1 | . . . 1 . . Branch Access Points 1 | . . . . 1 . Emergency Access Points 3 | . . 1 . 2 . Alert Level 2 | . . 1 . 1 . Unreport Threat 1 | . . . . 1 . Maintenance Status 1 | . . . . 1 . Hauler Manifests 1 | . . . . 1 . Zone Layout 3 | . 1 1 . 1 . Fabricator Hacks . | . . . . . . Repair Station Hacks 2 | . 2 . . . . Scan Component 1 | . 1 . . . . Repair 1 | . 1 . . . . Recycling Unit Hacks 1 | . 1 . . . . Retrieve Components 1 | . 1 . . . . Scanalyzer . | . . . . . . Garrison Access Hacks . | . . . . . . Unauthorized Hacks . | . . . . . . Terminals . | . . . . . . Fabricators . | . . . . . . Repair Stations . | . . . . . . Recycling Units . | . . . . . . Scanalyzers . | . . . . . . Garrison Access . | . . . . . . Data Cores Recovered . | . . . . . . Used . | . . . . . . Hacking Detections 10 | . 3 2 . 5 . Full Trace Events 5 | . 1 . . 4 . Feedback Events . | . . . . . . Feedback Blocked . | . . . . . . Robot Schematics Acquired . | . . . . . . Robots Built . | . . . . . . Authchips . | . . . . . . Time . | . . . . . . Total Robot Build Rating . | . . . . . . Part Schematics Acquired . | . . . . . . Parts Built . | . . . . . . Authchips . | . . . . . . Time . | . . . . . . Total Part Build Rating . | . . . . . . Parts Repaired 1 | . 1 . . . . Time 26 | . 26 . . . . Parts Recycled . | . . . . . . Recycled Matter . | . . . . . . Retrieved Matter . | . . . . . . Retrieved Components 10 | . 10 . . . . Parts Scanalyzed . | . . . . . . Part Schematics Acquired . | . . . . . . Parts Damaged . | . . . . . . Bothacking | -11 -10 -9 -9 -8 -7 ------------ Run | Yrd Mat Mat Min Mat Fac Used RIF Installer . | . . . . . . Robots Hacked 1 | . 1 . . . . Non-combat 1 | . 1 . . . . Combat . | . . . . . . Robot Hacks Applied 3 | . 3 . . . . parse_system 1 | . 1 . . . . no_distress 1 | . 1 . . . . find_recycling 1 | . 1 . . . . Relay Couplers Released . | . . . . . . Fabnet Peak Effective % . | . . . . . . Robots Rewired . | . . . . . . Allies Hacked . | . . . . . . Hacks Repelled . | . . . . . . Allies | -11 -10 -9 -9 -8 -7 -------- Run | Yrd Mat Mat Min Mat Fac Total Allies . | . . . . . . Largest Group . | . . . . . . Highest-Rated Group . | . . . . . . Highest-Rated Ally . | . . . . . . Total Orders . | . . . . . . Ally Attacks . | . . . . . . Total Damage . | . . . . . . Kills . | . . . . . . Allies Corrupted . | . . . . . . Allies Melted . | . . . . . . Intel | -11 -10 -9 -9 -8 -7 ------- Run | Yrd Mat Mat Min Mat Fac Active Infowar (turns) 3862 | 37 1222 446 1302 855 . Sensors 3747 | . 1144 446 1302 855 . Terrain 265 | 28 78 159 . . . Structural 390 | . . . 356 34 . Seismic 1135 | 9 . 439 687 . . Robot Analysis Total . | . . . . . . Derelict Logs Recovered . | . . . . . . Drone Launches . | . . . . . . Drone Recoveries . | . . . . . . Exploration | -11 -10 -9 -9 -8 -7 ------------- Run | Yrd Mat Mat Min Mat Fac Turns Passed 4994 | 119 1222 446 1302 1295 610 Spaces Moved 3280 | 61 675 235 1094 929 286 Core 17 | 6 6 . . 5 . Treads 581 | 55 521 . . 5 . Legs 447 | . . . . 334 113 Wheels 2104 | . 148 235 1094 566 61 Hover . | . . . . . . Flight 131 | . . . . 19 112 Fastest Speed 50 | 50 90 85 105 87 115 Average Speed 122 | 149 145 100 105 115 167 Slowest Speed 700 | 160 250 105 135 700 186 Overloaded Moves . | . . . . . . Propulsion Burnouts . | . . . . . . Robots Hopped . | . . . . . . Potential Cave-ins 1 | . . . . 1 . Cave-ins Triggered . | . . . . . . Exploration Rate (%) 47 | 4 71 24 102 72 9 Regions Visited 5 Branch Regions 1 Pre-discovered Areas 1 | . . . 1 . . Known Exits Taken . | . . . . . . Unknown Exits Taken 5 | 1 1 1 1 1 . Scrap Searched 1 | . . . 1 . . Spaces Dug 30 | . . . 9 20 1 Terrain Destroyed 536 | . 19 . 41 382 94 Melee 7 | . . . 3 3 1 Projectile . | . . . . . . AOE 529 | . 19 . 38 379 93 Terrain Rammed . | . . . . . . Walls Destroyed . | . . . . . . Machines Disabled . | . . . . . . Actions | -11 -10 -9 -9 -8 -7 --------- Run | Yrd Mat Mat Min Mat Fac Total 3895 | 83 809 367 1200 1079 357 Wait 172 | . 45 53 53 14 7 Move 3275 | 60 674 234 1093 928 286 Hop . | . . . . . . Pick Up 67 | 12 6 13 5 27 4 Fast Attach 6 | . 2 1 3 . . Attach 44 | 7 3 4 1 16 13 Detach 5 | . . . . 2 3 Swap 27 | 1 7 6 6 6 1 Drop 26 | . 1 4 5 14 2 Fire 173 | 3 58 45 9 46 12 Melee 98 | . 11 7 25 26 29 Ram . | . . . . . . Kick . | . . . . . . Crush 2 | . 2 . . . . Escape Stasis . | . . . . . . Rewire . | . . . . . . Trap . | . . . . . . Miscellaneous . | . . . . . . Route ------- -11/Scrapyard -10/Materials (discovered 2 exits: *Mat x2) -9/Materials (discovered 2 exits: *Min / [*Sto]) -9/Mines (discovered 2 exits: *Mat x2) -8/Materials (discovered 3 exits: *Fac x3) -7/Factory (discovered 1 exit: [*Low]) History --------- Turn | Location | Event 5 | -11/Scrapyard | Discovered new exit (range 14) 120 | -11/Scrapyard | Entered Materials 314 | -10/Materials | Build established: Mutant 634 | -10/Materials | Core integrity fell below 50% 721 | -10/Materials | Discovered new exit (range 11) 920 | -10/Materials | Repaired Ion Engine 1020 | -10/Materials | Derelicts attacked the area 1147 | -10/Materials | Core integrity fell below 20% 1214 | -10/Materials | Lost 3 parts (2n1w) 1279 | -10/Materials | Discovered new exit (range 14) 1342 | -10/Materials | Entered another Materials area 1342 | -9/Materials | Evolved 2 slots: Utility x2 1490 | -9/Materials | Discovered new exit (range 16) 1768 | -9/Materials | Discovered new exit (range 13) 1788 | -9/Materials | Entered Mines 1800 | -9/Mines | YI-UF0 nonchalantly dropped a Grenade Launcher on the ground 1834 | -9/Mines | Discovered new exit (range 14) 2090 | -9/Mines | Found a damaged Exp. Sensor Array with a note attached 2095 | -9/Mines | Found Prototype Device 2096 | -9/Mines | Identified Exp. Sensor Array 2281 | -9/Mines | Discovered new exit (range 9) 2284 | -9/Mines | Learned location of Storage (-9) 2469 | -9/Mines | Met a Derelict shopkeep closing up shop 3090 | -9/Mines | Entered Materials 3090 | -8/Materials | Evolved 2 slots: Propulsion x2 3498 | -8/Materials | Discovered new exit (range 4) 3515 | -8/Materials | Central database locked down 3814 | -8/Materials | Destroyed 12 combat bots 3822 | -8/Materials | Lost 7 parts (1p5n1w) 3890 | -8/Materials | First assault squad dispatched 3947 | -8/Materials | Discovered new exit (range 8) 4027 | -8/Materials | Core integrity fell below 50% 4203 | -8/Materials | Discovered new exit (range 9) 4358 | -8/Materials | Core integrity fell below 20% 4385 | -8/Materials | Entered Factory 4385 | -7/Factory | Evolved 2 slots: Power x1, Utility x1 4705 | -7/Factory | Lost 6 parts (1p3n1u1w) 4883 | -7/Factory | Discovered new exit (range 7) 4935 | -7/Factory | Lost 3 parts (2p1n) 4995 | -7/Factory | Self-destructed Last Messages --------------- K-01 Serf collects debris. The unstable cave ceiling collapses. K-01 Serf collects debris. Sneak attack on T-07 Excavator. Destroyed Mining Laser. T-07 Excavator destroyed. Acquired 11 matter. Connecting with Terminal... Current location identified: Factory O-24 Administrator: "IFF HANDSHAKE FAILED. SECURING TERMINAL." O-24 Administrator uses terminal to summon reinforcements. ALERT: Hostiles spotted, dispatching reinforcements to Terminal F012. O-24 Administrator locks terminal. Great Axe destroyed. Destroyed Great Axe. Y-54 Guardian emerges from the garrison. Missile Launcher destroyed. Map ----- +----------------------------------------------------+ | ???????????????????????????????????????????# """ | | ???????????????????????????????????????????# """ | | ???????????????????????????????????????????# """ | | ???????????????????????????????????????????# | | ???????????????????????????????????????????####### | | ????????????????????????????????????????????????# | | ????????????????????????????????????????????????# | | ????????????????????????????????????????????????# | | ????????????????????????????????????????????????# | | ????????????????????????????????????????????????# | | ????????????????????????????????????????????????# | | ????????????????????????????????????????????????# | | ????????????????????????#+#?##########??????????# | | ????????????????????????# #?# #???######## | | ????????????????????????# #?# """ #???# ! # | | ??????????????????????### ### """ ##### = | | ??????????????????????# # """ + < | | ??????????????##### ### T # ##### | | ??????????????? o"" + """ #???# ## | | ??????????????######### # """ #???# # # | | ??????????????????????# # """ #???## # # | | ??????????????????????## ## #????# #### | | ???????????????????????# ##+########??### ## | | ???????????????????????# ! #??## | | ???????????????????##### ######## #??# | | ???????????????????+ @ #??????# ###### # | | ???????????????????### #????# | | ???????????????????# ??# ## | | ???????????????????# g # # # ## | | ???????????????????# !!gY" #? # ## | | ???????????????????# !! "" #??? ######## # # | | ???????????????????# g G #????+?????? | | ???????????????????# "" #???????????####### | | ???????????????????# " #?????????????????? | | ???????????????????# ?????????????????????# | | ???????????????????########??????????????????????? | | | | | | | | | | | | | | | | | | | | | | | | | | | | | +----------------------------------------------------+ Best States ------------- Heat Dissipation 48 Energy Generation 23 Energy Capacity 380 Matter Stores 300 Matter Capacity 300 Sight Range 16 Robot Scan Range 20 Terrain Scan Range 16 Terrain Scan Density 10 Armor Coverage 225 Utility Shielding 66 Melee Speed Boost 20 Evasion (%) 55 Recoil Reduction 2 Defensive Hacking 10 Item Schematics ----------------- None Robot Schematics ------------------ None Fabricated ------------ Nothing Repaired ---------- Ion Engine | 33% | -10/Materials Alien Tech Used ----------------- None Achievements -------------- Backstab Challenges ------------ None Game ------ Seed JunkHypertargetingRedirector Manual? 0 Play Time 00:50:18 Cumulative 10.1 hours Start 2025.10.19 @ 15:45:49 End 2025.10.19 @ 17:37:59 Sessions 3 Manual Loads 0 Difficulty Rogue Special Mode None Game No. 16 Rogue 8 Adventurer 8 Explorer 0 Win Type - Total 0 Types 0/0/0/0/0/0/0/0/0/0 Lore% 9 Gallery% 14 Achievement% 19 Wizard Run 0 Options --------- Layout 1 ASCII 0 Keyboard 0 Movement Arrows Keybinds 0 Fullscreen 1 Font 24/Smallcaps Map View 50x40 Zoom Use 0% Tactical HUD 0 Map Filters NONE Filters NONE Steam 1 RUN: 73cc4a88-3808-4b6d-97f8-c5b56b502017